Cogmind - Beta 16.1 @@@ ROGUE MODE // 2026.02.14 @ 18:42:45 Player: Miguell Result: Destroyed by L-31 Rogue with Katana Performance ------------- Evolutions (2) 1000 Regions Visited (5) 1000 Robots Destroyed (50) 250 Value Destroyed (1780) 1780 Prototype IDs (1) 20 Alien Tech Used (0) 0 Bonus (194) 194 TOTAL SCORE: 4244 Bonus ------- High Alert Combat Kills 22 Follower Combat Kills 209 Friendly Fire -37 Cogmind --------- Core Integrity 0/550 Matter 272/300 Energy 65/100 System Corruption 10% Temperature Cool (36) Movement Core (550) Ox10 Location -8/Storage Parts ------- > --- POWER (2) -------- (None) > --- PROPULSION (2) --- Armored Treads > --- UTILITY (4) ------ Large Storage Unit > --- WEAPON (3) ------- Advanced EMP Blaster Advanced EMP Blaster > --- INVENTORY (15) --- Armored Treads Armored Treads Armored Treads Armored Treads Advanced EMP Blaster Advanced EMP Blaster Advanced EMP Blaster Great Maul Great Axe Peak State ------------ > --- POWER ------------ Light Nuclear Core Light Angular Momentum Engine > --- PROPULSION ------- Armored Treads Armored Treads > --- UTILITY ---------- Improved Heat Sink Large Storage Unit Terrain Scan Processor Hardened Medium Armor Plating > --- WEAPON ----------- Heavy Particle Cannon Light Assault Rifle Great Axe > --- INVENTORY -------- Improved Ion Engine Armored Treads Armored Treads Armored Treads Armored Treads Armored Treads Armored Treads Heavy Assault Rifle EMP Blaster Advanced EMP Blaster Advanced EMP Blaster Advanced EMP Blaster Advanced EMP Blaster Advanced EMP Blaster Great Maul [Rating: 35] Favorites ----------- Power Improved Ion Engine Engine Improved Ion Engine Power Core Light Nuclear Core Propulsion Armored Treads Treads Armored Treads Leg Aluminum Leg Wheel Compact Wheel Utility Large Storage Unit Device Improved Heat Sink Storage Large Storage Unit Processor Terrain Scan Processor Protection Hardened Medium Armor Plating Weapon Light Assault Rifle Energy Gun EM Pulse Gun Energy Cannon Heavy Particle Cannon Ballistic Gun Light Assault Rifle Launcher Grenade Launcher Impact Weapon Great Maul Slashing Weapon Great Axe Special Melee Weapon Datajack Build | -11 -10 -9 -9 -8 -8 ------- Run | Yrd Mat Mat Min Mat Sto Slots Evolved 4 | . . 2 . 2 . Power 1 | . . 1 . . . Propulsion . | . . . . . . Utility 2 | . . . . 2 . Weapon 1 | . . 1 . . . Parts Attached 60 | 8 7 15 8 9 13 Power 10 | 1 . 2 2 1 4 Engine 9 | 1 . 2 2 1 3 Core 1 | . . . . . 1 Reactor . | . . . . . . Propulsion 21 | 4 2 5 3 4 3 Treads 12 | 2 2 3 . 2 3 Leg 7 | . . 2 3 2 . Wheel 2 | 2 . . . . . Hover . | . . . . . . Flight . | . . . . . . Utility 9 | 1 3 1 1 2 1 Device 4 | . 1 1 1 1 . Storage 3 | 1 2 . . . . Processor 1 | . . . . 1 . Hackware . | . . . . . . Protection 1 | . . . . . 1 Artifact . | . . . . . . Weapon 20 | 2 2 7 2 2 5 Energy Gun 2 | 2 . . . . . Energy Cannon 2 | . . . . 2 . Ballistic Gun 6 | . 1 3 1 . 1 Ballistic Cannon . | . . . . . . Launcher 6 | . 1 2 1 . 2 Special Weapon . | . . . . . . Impact Weapon 1 | . . . . . 1 Slashing Weapon 2 | . . 1 . . 1 Piercing Weapon . | . . . . . . Special Melee Weapon 1 | . . 1 . . . Unidentified Prototypes 1 | . . . . . 1 Corrupted Parts 1 | . . . . . 1 System Corruption 5 | . . . . . 5 Parts Lost 23 | . . 3 3 . 17 Power 8 | . . 2 1 . 5 Propulsion 3 | . . . 1 . 2 Utility 4 | . . . . . 4 Weapon 8 | . . 1 1 . 6 Highest Loss Streak 10 | . . 1 2 . 10 To Critical Strikes . | . . . . . . Average Backups 12 | 3 8 14 13 14 12 Power 1 | . 2 2 1 1 . Propulsion 4 | 1 4 4 3 3 5 Utility 1 | . . 2 2 1 . Weapon 5 | . 1 4 6 8 5 Tool/Special . | . . . . . . Unused Backups 15 | . 2 1 . 5 7 Power . | . . . . . . Propulsion 8 | . 1 . . 4 3 Utility 2 | . . 1 . . 1 Weapon 5 | . 1 . . 1 3 Tool/Special . | . . . . . . Average Slot Usage (%) 92 | . 93 88 91 99 93 Engine 14 | . 14 12 15 18 15 Treads 14 | . 26 20 . 3 17 Leg 6 | . . 1 21 14 . Device 10 | . 8 10 11 17 9 Storage 10 | . 14 11 11 9 9 Processor 4 | . . . . 9 9 Protection 2 | . . . . . 6 Energy Gun 4 | . 21 7 . . . Energy Cannon 4 | . . . . 9 8 Ballistic Gun 7 | . 3 15 6 . 7 Launcher 5 | . 2 1 14 7 1 Slashing Weapon 3 | . . 1 6 . 5 Special Melee Weapon 3 | . . 6 4 9 . Peak Build Rating 35 | 6 8 13 13 28 35 Average Rating 18 | 3 6 9 11 26 28 On Entrance 11 | . 6 8 12 13 27 Avg Prop Armor Cover (%) 16 | . . . . . 16 Naked Turns . | . . . . . . Heaviest Build 54 | 14 30 37 35 41 54 Greatest Support 40 | 26 40 40 20 40 40 Greatest Overweight (x) 2 | 2 . 1 2 1 1 Average Overweight (x) . | . . . 1 . . Largest Inventory Capacity 15 | 8 15 15 15 15 15 Average Capacity 14 | 6 12 15 15 15 15 Most Carried 15 | 5 13 15 15 15 15 Average Carried 12 | 3 8 14 13 14 12 Final Capacity 15 | 8 15 15 15 15 15 Final Carried 15 | 4 13 15 14 15 9 Class Distribution -------------------- 78% | Mutant 17% | Scavenger-Mutant 4% | Skirmisher Dominant Class ---------------- Mutant | -10/Materials Mutant | -9/Materials Scavenger-Mutant | -9/Mines Mutant | -8/Materials Mutant | -8/Storage Resources | -11 -10 -9 -9 -8 -8 ----------- Run | Yrd Mat Mat Min Mat Sto Matter Collected 1595 | 236 225 435 167 92 440 Remotely . | . . . . . . Salvage Created 1833 | . 150 414 179 116 974 Parts 112 | . 9 30 6 9 58 Haulers Intercepted . | . . . . . . Recyclers Shooed 1 | . . . . . 1 Parts Field Recycled . | . . . . . . Retrieved Matter . | . . . . . . Parts Self-Destructed . | . . . . . . Prevented . | . . . . . . Parts Restored . | . . . . . . Kills | -11 -10 -9 -9 -8 -8 ------- Run | Yrd Mat Mat Min Mat Sto Combat Hostiles Destroyed 43 | . 5 8 4 2 24 Melee 4 | . . . . . 4 Guns 15 | . 4 5 3 . 3 Cannons 6 | . . . . 1 5 AOE 13 | . 1 2 1 . 9 Classes Destroyed 10 | . 2 4 . 1 3 Worker 1 | . . 1 . . . Builder 1 | . . . . . 1 Tunneler 1 | . . . . 1 . Recycler 1 | . . . . . 1 Watcher 3 | . . 1 . 1 1 Swarmer 11 | . 3 . . . 8 Grunt 12 | . 2 2 4 1 3 Duelist 3 | . . 1 . . 2 Protector 1 | . . . . . 1 Sentry 16 | . . 5 . 1 10 Best Kill Streak 5 | . 3 3 1 2 5 Combat Bots Only 4 | . 3 2 1 1 4 Max Kills in Single Turn 4 | . 1 2 1 1 4 Gunslinging . | . . . . . . Exploded 4 | . 1 1 1 . 4 Melee 1 | . . . . . 1 Uniques/NPCs Destroyed . | . . . . . . Combat | -11 -10 -9 -9 -8 -8 -------- Run | Yrd Mat Mat Min Mat Sto Hostile Shots Fired 429 | . 22 84 54 9 260 Missed 128 | . 6 34 21 3 64 Hits 301 | . 16 50 33 6 196 Melee 16 | . . 7 . . 9 Projectile 285 | . 16 43 33 6 187 Critical Strikes 13 | . . 3 . 2 8 Damage Taken 4571 | . 163 868 526 135 2879 Core 881 | . 8 174 140 40 519 Absorbed by Shields . | . . . . . . Core Remaining (%) 72 | 100 96 . 21 . . Volleys Fired 146 | . 8 42 30 9 57 Largest 3 | . 2 3 2 2 3 Hottest 150 | . 80 100 60 150 128 Shots Fired 267 | . 16 73 54 18 106 Gun 182 | . 15 71 52 . 44 Cannon 55 | . . . . 13 42 Launcher 30 | . 1 2 2 5 20 Special . | . . . . . . Kinetic 155 | . 3 56 52 . 44 Thermal 55 | . . . . 13 42 Explosive 14 | . 1 1 2 5 5 Electromagnetic 43 | . 12 16 . . 15 Robot Hit Streak 14 | . 7 14 6 9 10 Robot Miss Streak 4 | . 4 3 2 3 4 Penetration Max . | . . . . . . Secondary Targets 2 | . . 1 1 . . Max Gunslinging Chain 1 | . . 1 1 . . Shots Hit Robots 199 | . 10 58 38 14 79 Core Hits 80 | . 8 19 9 5 39 Critical Kills . | . . . . . . Critical Parts Destroyed 2 | . . . . . 2 Critical Strikes 3 | . . 1 . . 2 Destroy 1 | . . . . . 1 Corrupt 1 | . . 1 . . . Smash 1 | . . . . . 1 Melee Attacks 26 | . . 1 2 1 22 Impact 10 | . . . . . 10 Slashing 10 | . . . . . 10 Piercing . | . . . . . . Sneak Attacks 5 | . . . 2 1 2 Combat Hostiles . | . . . . . . Follow-up Attacks 1 | . . . . . 1 Damage Inflicted 4209 | . 168 912 326 419 2384 Guns 1255 | . 125 568 282 . 280 Cannons 800 | . . . . 250 550 Explosions 1638 | . 43 344 44 169 1038 Melee 516 | . . . . . 516 Ramming . | . . . . . . Kinetic 1029 | . 40 427 282 . 280 Thermal 1114 | . . 235 . 250 629 Explosive 893 | . 43 70 44 169 567 Electromagnetic 657 | . 85 180 . . 392 Impact 255 | . . . . . 255 Slashing 261 | . . . . . 261 Piercing . | . . . . . . Highest Corruption 6 | . 5 . . . 6 Average Corruption 5 | . 2 . . . 5 Corruption Purged . | . . . . . . Corruption Blocked . | . . . . . . Effects 42 | . 2 . . . 40 Message Errors 14 | . 2 . . . 12 Matter Fused 10 | . . . . . 10 Heat Flow Errors 3 | . . . . . 3 Energy Discharges 10 | . . . . . 10 Data Loss (minor) 3 | . . . . . 3 Misfires 1 | . . . . . 1 Weapon Failures 1 | . . . . . 1 Overload Shots . | . . . . . . Overflow Damage 197 | . . 96 . 6 95 Projectiles . | . . . . . . Explosions 109 | . . 96 . 6 7 Melee 88 | . . . . . 88 Knockbacks . | . . . . . . Impact . | . . . . . . Kinetic . | . . . . . . Secondary . | . . . . . . Self-Inflicted Damage 250 | . 26 33 . 47 144 Shots 12 | . 1 1 . 2 8 Rammed . | . . . . . . Targets Rammed . | . . . . . . Kicked . | . . . . . . Crushed . | . . . . . . Highest Temperature 453 | . 72 140 2 162 453 Average Temperature 96 | . 28 77 2 58 118 Received Heat Transfer 1389 | . 24 189 258 63 855 Effects 3 | . . . . . 3 Shutdowns 1 | . . . . . 1 Short Circuit 2 | . . . . . 2 Siege Activations . | . . . . . . Martial Activations . | . . . . . . Shielding Activations . | . . . . . . Robots Disrupted . | . . . . . . Combat Hostiles . | . . . . . . Robots Corrupted 4 | . . 1 . . 3 Combat Hostiles 4 | . . 1 . . 3 Parts Fried 4 | . . 2 . . 2 Impact Corruptions 3 | . . . . . 3 Robots Melted 1 | . . . . 1 . Combat Hostiles 1 | . . . . 1 . Parts Melted 3 | . . . . 1 2 Heat Transferred 1409 | . . 150 . 370 889 Parts Sabotaged . | . . . . . . Parts Stolen . | . . . . . . Parts Stripped . | . . . . . . Power Chain Reactions 2 | . . . . . 2 Alert | -11 -10 -9 -9 -8 -8 ------- Run | Yrd Mat Mat Min Mat Sto Maximum Alert Level 2 | . . . . . 2 Low Security (%) 93 | 100 100 100 100 100 81 Level 1 5 | . . . . . 13 Level 2 1 | . . . . . 4 Level 3 . | . . . . . . Level 4 . | . . . . . . Level 5 . | . . . . . . High Security . | . . . . . . Max Security . | . . . . . . Peak Influence 475 | . 82 152 52 102 475 Initial 52 | . . 16 52 . 13 Average 64 | . 25 37 9 37 129 Influence Increases 1874 | . 172 327 118 134 1123 Destroy 0b10 Robot/C 980 | . 100 160 80 40 600 Destroy 0b10 Robot/NC 40 | . . 10 . 10 20 Destroy Leader 256 | . 20 62 10 12 152 Allied During Kill 35 | . . . . . 35 Successful Hack 13 | . . 13 . . . Disable Machine 165 | . 15 60 . 30 60 Anti-Garrison Action 150 | . . . . . 150 Destroy Structure 175 | . 7 22 13 42 91 Lose Combat Pursuer 60 | . 30 . 15 . 15 Influence Decreases 1447 | . 132 231 254 102 728 Entered New Map 127 | . . 24 84 . 19 Time Decay 1070 | . 132 197 140 102 499 Lost Part 210 | . . 10 30 . 170 Lost Ally 40 | . . . . . 40 Squads Dispatched 10 | . 1 1 1 . 7 Investigation 2 | . . . 1 . 1 Extermination . | . . . . . . Reinforcement 2 | . 1 1 . . . Assault 4 | . . . . . 4 Garrison 2 | . . . . . 2 Intercept . | . . . . . . Searches Triggered . | . . . . . . Construction Impeded 1 | . . 1 . . . Haulers Reinforced . | . . . . . . Active Scanning Responses . | . . . . . . Cargo Convoy Interrupts . | . . . . . . Stealth | -11 -10 -9 -9 -8 -8 --------- Run | Yrd Mat Mat Min Mat Sto Distress Signals 4 | . 1 3 . . . Communications Jammed . | . . . . . . Distress Signals . | . . . . . . Times Spotted 95 | . 11 21 7 5 51 Peak Tracking Total 11 | . 5 6 3 2 11 Tactical Retreats 4 | . 2 . 1 . 1 Traps | -11 -10 -9 -9 -8 -8 ------- Run | Yrd Mat Mat Min Mat Sto Traps Triggered 3 | . 3 . . . . Indirectly . | . . . . . . Trap Hack Attempts . | . . . . . . Triggered . | . . . . . . Disarmed . | . . . . . . Reprogrammed . | . . . . . . Reused . | . . . . . . Traps Extracted . | . . . . . . Installed . | . . . . . . Triggered . | . . . . . . Machines | -11 -10 -9 -9 -8 -8 ---------- Run | Yrd Mat Mat Min Mat Sto Machines Disabled 12 | . 1 4 . 2 5 Max in Single Turn 3 | . 1 3 . 2 3 Garrison Access 1 | . . . . . 1 Machines Repaired . | . . . . . . Machines Dismantled . | . . . . . . Machines Sabotaged . | . . . . . . Overloaded Fab Kills . | . . . . . . Hacking | -11 -10 -9 -9 -8 -8 --------- Run | Yrd Mat Mat Min Mat Sto Machines Accessed 3 | . . 1 1 . 1 Terminals 2 | . . 1 . . 1 Fabricators . | . . . . . . Repair Stations . | . . . . . . Recycling Units . | . . . . . . Scanalyzers . | . . . . . . Garrison Access . | . . . . . . Total Hacks 10 | . . 7 1 . 2 Successful 8 | . . 6 1 . 1 Failed 2 | . . 1 . . 1 Catastrophic . | . . . . . . Database Lockouts . | . . . . . . Manual . | . . . . . . Terminals 9 | . . 7 . . 2 Fabricators . | . . . . . . Repair Stations . | . . . . . . Recycling Units . | . . . . . . Scanalyzers . | . . . . . . Garrison Access . | . . . . . . Terminal Hacks 8 | . . 6 1 . 1 Record 2 | . . 1 . . 1 Open Door 1 | . . . 1 . . Level Access Points 1 | . . 1 . . . Branch Access Points 1 | . . 1 . . . Alert Level 2 | . . 2 . . . Hauler Manifests 1 | . . 1 . . . Fabricator Hacks . | . . . . . . Repair Station Hacks . | . . . . . . Recycling Unit Hacks . | . . . . . . Scanalyzer . | . . . . . . Garrison Access Hacks . | . . . . . . Unauthorized Hacks . | . . . . . . Terminals . | . . . . . . Fabricators . | . . . . . . Repair Stations . | . . . . . . Recycling Units . | . . . . . . Scanalyzers . | . . . . . . Garrison Access . | . . . . . . Data Cores Recovered . | . . . . . . Used . | . . . . . . Hacking Detections 2 | . . 1 . . 1 Full Trace Events . | . . . . . . Feedback Events . | . . . . . . Feedback Blocked . | . . . . . . Robot Schematics Acquired . | . . . . . . Robots Built . | . . . . . . Authchips . | . . . . . . Time . | . . . . . . Total Robot Build Rating . | . . . . . . Part Schematics Acquired . | . . . . . . Parts Built . | . . . . . . Authchips . | . . . . . . Time . | . . . . . . Total Part Build Rating . | . . . . . . Part Studies Acquired . | . . . . . . Parts Repaired . | . . . . . . Time . | . . . . . . Parts Recycled . | . . . . . . Recycled Matter . | . . . . . . Retrieved Matter . | . . . . . . Retrieved Components . | . . . . . . Parts Scanalyzed . | . . . . . . Part Schematics Acquired . | . . . . . . Parts Damaged . | . . . . . . Bothacking | -11 -10 -9 -9 -8 -8 ------------ Run | Yrd Mat Mat Min Mat Sto Used RIF Installer . | . . . . . . Robots Hacked 6 | . . 1 2 1 2 Non-combat 5 | . . . 2 1 2 Combat 1 | . . 1 . . . Robot Hacks Applied 6 | . . 1 2 1 2 parse_system 2 | . . 1 . 1 . no_distress 3 | . . . 2 . 1 find_recycling 1 | . . . . . 1 Relay Couplers Released 2 | . . . . . 2 Machine Destruction 2 | . . . . . 2 Fabnet Peak Effective % . | . . . . . . Robots Rewired . | . . . . . . Allies Hacked . | . . . . . . Hacks Repelled . | . . . . . . Allies | -11 -10 -9 -9 -8 -8 -------- Run | Yrd Mat Mat Min Mat Sto Total Allies 2 | . . . . . 2 Largest Group 2 | . . . . . 2 Highest-Rated Group 62 | . . . . . 62 Highest-Rated Ally 31 | . . . . . 31 Total Orders . | . . . . . . Ally Attacks 43 | . . . . . 43 Total Damage 652 | . . . . . 652 Kills 7 | . . . . . 7 Allies Corrupted . | . . . . . . Allies Melted . | . . . . . . Intel | -11 -10 -9 -9 -8 -8 ------- Run | Yrd Mat Mat Min Mat Sto Active Infowar (turns) 524 | . 297 227 . . . Structural 524 | . 297 227 . . . Robot Analysis Total . | . . . . . . Derelict Logs Recovered 1 | . . . 1 . . Drone Launches . | . . . . . . Drone Recoveries . | . . . . . . Exploration | -11 -10 -9 -9 -8 -8 ------------- Run | Yrd Mat Mat Min Mat Sto Turns Passed 3582 | 62 509 583 756 298 1374 Spaces Moved 1501 | 47 278 257 339 112 468 Core 18 | 18 . . . . . Treads 1009 | 2 266 244 . 29 468 Legs 435 | . . 13 339 83 . Wheels 39 | 27 12 . . . . Hover . | . . . . . . Flight . | . . . . . . Fastest Speed 50 | 50 90 160 190 170 170 Average Speed 189 | 83 156 161 192 192 232 Slowest Speed 260 | 160 160 190 260 250 250 Overloaded Moves . | . . . . . . Propulsion Burnouts . | . . . . . . Robots Hopped . | . . . . . . Potential Cave-ins . | . . . . . . Cave-ins Triggered . | . . . . . . Exploration Rate (%) 36 | 4 49 26 60 12 68 Regions Visited 5 Branch Regions 2 Pre-discovered Areas . | . . . . . . Known Exits Taken 2 | . . 1 1 . . Unknown Exits Taken 3 | 1 1 . . 1 . Scrap Searched . | . . . . . . Spaces Dug . | . . . . . . Terrain Destroyed 179 | . 6 22 18 44 89 Melee . | . . . . . . Projectile 20 | . . . . 2 18 AOE 159 | . 6 22 18 42 71 Terrain Rammed . | . . . . . . Walls Destroyed . | . . . . . . Machines Disabled . | . . . . . . Actions | -11 -10 -9 -9 -8 -8 --------- Run | Yrd Mat Mat Min Mat Sto Total 1961 | 67 334 362 398 179 621 Wait 114 | 3 20 29 8 18 36 Move 1496 | 46 277 256 338 111 468 Hop . | . . . . . . Pick Up 63 | 8 15 9 6 15 10 Fast Attach 11 | 4 1 3 1 2 . Attach 23 | 2 1 3 3 2 12 Detach . | . . . . . . Swap 44 | 2 6 11 6 7 12 Drop 39 | 2 6 8 4 14 5 Fire 146 | . 8 42 30 9 57 Melee 25 | . . 1 2 1 21 Ram . | . . . . . . Kick . | . . . . . . Crush . | . . . . . . Escape Stasis . | . . . . . . Rewire . | . . . . . . Trap . | . . . . . . Miscellaneous . | . . . . . . Route ------- -11/Scrapyard -10/Materials (discovered 2 exits: *Mat x2) -9/Materials (discovered 4 exits: Mat x3 / *Min) -9/Mines (discovered 2 exits: *Mat x2) -8/Materials -8/Storage History --------- Turn | Location | Event 8 | -11/Scrapyard | Discovered new exit (range 16) 63 | -11/Scrapyard | Entered Materials 224 | -10/Materials | Discovered new exit (range 15) 315 | -10/Materials | Build established: Mutant 548 | -10/Materials | Discovered new exit (range 16) 572 | -10/Materials | Entered another Materials area 572 | -9/Materials | Evolved 2 slots: Power x1, Weapon x1 653 | -9/Materials | Identified exit to Materials 653 | -9/Materials | Identified exit to Mines 1155 | -9/Materials | Entered Mines 1226 | -9/Mines | Core integrity fell below 50% 1385 | -9/Mines | YI-UF0 nonchalantly dropped a Grenade Launcher on the ground 1418 | -9/Mines | Discovered exit to Materials (range 10) 1756 | -9/Mines | Learned 2 Materials zone layouts 1772 | -9/Mines | Met a Derelict shopkeep closing up shop 1892 | -9/Mines | Discovered exit to Materials (range 9) 1911 | -9/Mines | Entered Materials 1911 | -8/Materials | Evolved 2 slots: Utility x2 2033 | -8/Materials | Discovered new exit (range 4) 2209 | -8/Materials | Entered Storage 2361 | -8/Storage | Lost 3 parts (2p1w) 2686 | -8/Storage | Core integrity fell below 50% 3247 | -8/Storage | Met a pair of Derelict thieves 3545 | -8/Storage | Core integrity fell below 20% 3583 | -8/Storage | Destroyed by L-31 Rogue with Katana Last Messages --------------- 03565_ U-05 Engineer destroyed. 03568_ Critical hit (Burn: +37). 03571_ System corrupted: Energy discharge (-33). 03573_ Acquired 58 matter. 03573_ K-01 Serf collects debris. 03576_ The unstable cave ceiling collapses. 03577_ K-01 Serf collects debris. 03578_ Arm. Treads severed. 03579_ C-45 Heavy ARC bursts open, deploying its payload. 03579_ G-50 Soldier unfolds itself. 03579_ G-47 Trooper unfolds itself. 03579_ B-36 Bruiser unfolds itself. 03579_ I-25 Savior unfolds itself. 03580_ K-01 Serf collects debris. 03582_ The unstable cave ceiling collapses. 03582_ Identified Adv. EMP Blaster. 03582_ Hvy. Assault Rifle destroyed. 03583_ Terrain Scan Processor destroyed. 03583_ System corrupted by crushing effect (+4). 03583_ Critical hit (Burn: +37). Map ----- +----------------------------------------------------+ | #### ##"T"#### #?????????# #?????? | | ## #?????????# #?????? | | [%= ## #?????????# #?????? | | #### !% ##### ## #?????????# ###???? | | #####+####### # #?????????#######+##T#"??? | | % % ## ## ############### "??? | | %= # ##+####### # "??? | | " #?# # #####"??? | | = # #?# # #???###?? | | # ##### #?# + #####T### | | #############+####### #?# # ## | | #???????#### #?## %########+####### ## """ "" | | ##??????????" ###?# ##### ##### # """ "" | | ????????????" #???# % =# """ "" | | ????????????#T##???# " == !+% | | ????????????##?????# ##### ## !% [# | | ???????????????????######???###### # ! # | | ???????????????????????????????## | | ????###??????????#####????????### ##"T"# | | ???? #??????????#"""#####????#"" ##"""## | | ???? ############= " #????#"T ######? | | ????" # """"" ## "=[! ## #??#"" #?????? | | ????" # ""T"" ## [[% ##???## ##?????? | | ????" # ?# [ = ###??## #??????? | | ????" #? ??##= =! #???# #??????? | | ?"""" ####+######%= !@b #???##"T"######??????? | | "" + !*[%Y=[] glgl #????#"""#???????????? | | # ######^%k g%!##????####????????????? | | /###### #???##! k gig ######????????????????? | | #????# !%= # #????????????????? | | ##### #????# [ i ;g #????????????????? | | #???# #???# ## # #g T#????????????????? | | ## #???# #???##?# ### ##????????????????? | | ?# #??? ???? ##??#+##?????????????????? | | ?? #??? ?? % ??? ?????????????????? | | ??? #??? ###???###????????????????? | | ??? #???########## #????????????????????????? | | ??? #????????????#######????????????????????????? | | ???? #???????????????????????????????????????????? | | ???? #???????????????????????????????????????????? | | ?????#???????????????????????????????????????????? | | ?????????????????????????????????????????????????? | | ?????????????????????????????????????????????????? | | ?????????????????????????????????????????????????? | | ?????????????????????????????????????????????????? | | ?????????????????????????????????????????????????? | | ?????????????????????????????????????????????????? | | ?????????????????????????????????????????????????? | | ?????????????????????????????????????????????????? | | ?????????????????????????????????????????????????? | +----------------------------------------------------+ Best States ------------- Heat Dissipation 45 Energy Generation 27 Energy Capacity 430 Matter Stores 300 Matter Capacity 300 Sight Range 16 Terrain Scan Density 85 Armor Coverage 225 Evasion (%) 50 Recoil Reduction 2 Item Schematics ----------------- None Robot Schematics ------------------ None Fabricated ------------ Nothing Repaired ---------- Nothing Studied --------- None Alien Tech Used ----------------- None Achievements -------------- A Problem For Future Me Junior Dev Challenges ------------ None Game ------ Seed ChainAlphaDissipator Manual? 0 Play Time 00:38:22 Cumulative 6.7 hours Start 2026.02.14 @ 15:53:59 End 2026.02.14 @ 18:42:45 Sessions 1 Manual Loads 0 Difficulty Rogue Special Mode None Game No. 16 Rogue 16 Adventurer 0 Explorer 0 Win Type - Total 0 Types 0/0/0/0/0/0/0/0/0/0 Lore% 7 Gallery% 13 Achievement% 9 Wizard Run 0 Options --------- Layout 1 ASCII 0 Keyboard 0 Movement Mouse Keybinds 0 Fullscreen 0 Font 16/Smallcaps Map View 76x35 Zoom Use 9% Tactical HUD 1 Map Filters NONE Filters NONE Steam 1 RUN: bd3419c1-4a11-4b3f-91bb-cd0154ea5ec7